fUST/lending_fUST_20241031
["ID","MTS","AMOUNT","RATE_DAILY","PERIOD"]
[341081310,1730352643488,-500.0,0.00033448,120]
[341081311,1730352643497,-500.0,0.00033448,120]
[341081312,1730352643507,-500.0,0.00033448,120]
[341081313,1730352643517,-500.0,0.00033448,120]
[341081314,1730352643526,-500.0,0.00033448,120]
[341081315,1730352643535,-500.0,0.00033448,120]
[341081316,1730352643545,-534.81,0.00033448,120]
[341081317,1730352643555,-500.0,0.00033448,120]
[341081318,1730352643565,-500.0,0.00033448,120]
[341081319,1730352643574,-504.41,0.00033448,120]
[341081320,1730352643585,-500.0,0.00033448,120]
[341081321,1730352643595,-500.0,0.00033448,120]
[341081322,1730352643604,-500.0,0.00033448,120]
[341081323,1730352643614,-500.0,0.00033448,120]
[341081324,1730352643623,-414.1,0.00033448,120]
[341081325,1730352643632,-500.0,0.00033448,120]
[341081326,1730352643641,-500.0,0.00033448,120]
[341081327,1730352643652,-500.0,0.00033448,120]
[341081328,1730352643661,-306.51,0.00033448,120]
[341081329,1730352643670,-457.11,0.00033448,120]
[341081330,1730352643680,-500.0,0.00033448,120]
[341081331,1730352643689,-500.0,0.00033448,120]
[341081332,1730352643698,-500.0,0.00033448,120]
[341081333,1730352643707,-500.0,0.00033448,120]
[341081334,1730352643717,-500.0,0.00033448,120]
[341081335,1730352643726,-500.0,0.00033448,120]
[341081336,1730352643735,-500.0,0.00033448,120]
[341081337,1730352643744,-500.0,0.00033448,120]
[341081338,1730352643754,-500.0,0.00033448,120]
[341081339,1730352643763,-500.0,0.00033448,120]
[341081340,1730352643772,-500.0,0.00033448,120]
[341081341,1730352643780,-326.64,0.00033448,120]
[341081342,1730352643790,-500.0,0.00033448,120]
[341081343,1730352643802,-500.0,0.00033448,120]
[341081344,1730352643813,-151.0,0.00033448,14]
[341081345,1730352643823,-151.0,0.00033448,14]
[341081346,1730352643833,-151.0,0.00033448,14]
[341081347,1730352643842,-151.0,0.00033448,14]
[341081348,1730352643852,-151.0,0.00033448,14]
[341081349,1730352643861,-151.0,0.00033448,14]
[341081350,1730352643872,-151.0,0.00033448,14]
[341081351,1730352643881,-151.0,0.00033448,14]
[341081352,1730352643891,-266.334525,0.00033448,14]
[341081353,1730352643902,-151.0,0.00033448,14]
[341081354,1730352643912,-151.0,0.00033448,14]
[341081355,1730352643922,-151.0,0.00033448,14]
[341081356,1730352643931,-151.0,0.00033448,14]
[341081357,1730352643941,-333.3144,0.00033448,14]
[341081358,1730352643951,-333.3144,0.00033448,14]
[341081359,1730352643961,-576.799159,0.00033448,14]
[341081360,1730352643970,-576.799159,0.00033448,14]
[341081361,1730352643979,-734.9,0.00033594,5]
[341081362,1730352643989,-2996.44,0.00033594,5]
[341081363,1730352643998,-7092.19,0.00033594,3]
[341081364,1730352644008,-500.0,0.00033594,5]
[341081365,1730352644018,-827.87,0.00033594,5]
[341081366,1730352644027,-500.0,0.00033595,5]
[341081367,1730352644037,-1647.5,0.00033595,5]
[341081368,1730352644046,-500.0,0.00033595,5]
[341081369,1730352644056,-134.47450789,0.00033595,5]
[341081370,1730352644111,-381.95549211,0.00033595,5]
[341081371,1730352644121,-500.0,0.00033595,5]
[341081372,1730352644130,-500.0,0.00033596,5]
[341081373,1730352644139,-980.92,0.00033596,5]
[341081374,1730352644149,-3139.53,0.00033596,5]
[341081375,1730352644159,-150.0,0.000336,2]
[341081376,1730352644168,-150.112233,0.000336,15]
[341081377,1730352644177,-2134.41985856,0.00033614,2]
[341081378,1730352644186,-2959.9,0.0003362,5]
[341081379,1730352644195,-1264.7455346,0.0003368,2]
[341081380,1730352644204,-151.0,0.00033687,7]
[341081381,1730352644213,-734.9,0.00033868,5]
[341081382,1730352644223,-2996.44,0.00033868,5]
[341081383,1730352644233,-7092.19,0.00033868,3]
[341081384,1730352644243,-500.0,0.00033868,5]
[341081385,1730352644252,-827.87,0.00033868,5]
[341081386,1730352644263,-500.0,0.00033869,5]
[341081387,1730352644273,-333.3144,0.00033869,14]
[341081388,1730352644283,-333.3144,0.00033869,14]
[341081389,1730352644292,-1647.5,0.00033869,5]
[341081390,1730352644301,-500.0,0.00033869,5]
[341081391,1730352644311,-516.43,0.00033869,5]
[341081392,1730352644321,-576.799159,0.00033869,14]
[341081393,1730352644330,-576.799159,0.00033869,14]
[341081394,1730352644340,-500.0,0.00033869,5]
[341081395,1730352644350,-500.0,0.0003387,5]
[341081396,1730352644360,-980.92,0.0003387,5]
[341081397,1730352644370,-3139.53,0.0003387,5]
[341081398,1730352644383,-2959.9,0.00033894,5]
[341081399,1730352644393,-342.97,0.00034,15]
[341081400,1730352644405,-293.4,0.00034,120]
[341081401,1730352644415,-1085.5534,0.00034,30]
[341081402,1730352644426,-150.112233,0.00034,20]
[341081403,1730352644437,-151.0,0.00034,14]
[341081404,1730352644449,-151.0,0.00034,14]
[341081405,1730352644460,-151.0,0.00034,14]
[341081406,1730352644470,-151.0,0.00034,14]
[341081407,1730352644480,-151.0,0.00034,14]
[341081408,1730352644489,-150.112233,0.00034,12]
[341081409,1730352644499,-734.9,0.00034142,5]
[341081410,1730352644509,-2996.44,0.00034142,5]
[341081411,1730352644519,-7092.19,0.00034142,3]
[341081412,1730352644531,-500.0,0.00034142,5]
[341081413,1730352644543,-827.87,0.00034142,5]
[341081414,1730352644554,-151.0,0.00034143,14]
[341081415,1730352644564,-151.0,0.00034143,14]
[341081416,1730352644574,-500.0,0.00034143,5]
[341081417,1730352644584,-1647.5,0.00034143,5]
[341081418,1730352644597,-500.0,0.00034143,5]
[341081419,1730352644608,-516.43,0.00034143,5]
[341081420,1730352644620,-316.97117712,0.00034143,5]
[341081421,1730352644630,-151.0,0.00034144,14]
[341081422,1730352644640,-151.0,0.00034144,14]
[341081423,1730352644652,-151.0,0.00034144,14]
[341081424,1730352644662,-151.0,0.00034144,14]
[341081425,1730352644677,-151.0,0.00034144,14]
[341081426,1730352644686,-500.0,0.00034144,5]
[341081427,1730352644696,-980.92,0.00034144,5]
[341081428,1730352644706,-3139.53,0.00034144,5]
[341081429,1730352644718,-2959.9,0.00034168,5]
[341081430,1730352644728,-151.0,0.00034172,7]
[341081431,1730352644738,-1264.7455346,0.0003418,2]
[341081432,1730352644748,-1000.0,0.0003426,2]
[341081433,1730352644758,-1042.10494536,0.00034302,2]
[341081434,1730352644767,-1000.0,0.00034364,2]
[341081435,1730352644778,-300.0,0.000344,30]
[341081436,1730352644790,-1008.59589597,0.000344,30]
[341081437,1730352644799,-8657.56957668,0.000344,30]
[341081438,1730352644809,-184.0,0.000344,8]
[341081439,1730352644821,-301.25967,0.000344,17]
[341081440,1730352644830,-513.0,0.000344,2]
[341081441,1730352644840,-2644.565754,0.000344,19]
[341081442,1730352644850,-150.112233,0.000344,11]
[341081443,1730352644861,-203.462248,0.000344,23]
[341081444,1730352644873,-150.112233,0.000344,13]
[341081445,1730352644884,-734.9,0.00034416,5]
[341081446,1730352644894,-2996.44,0.00034416,5]
[341081447,1730352644906,-7092.19,0.00034416,3]
[341081448,1730352644917,-500.0,0.00034416,5]
[341081449,1730352644929,-827.87,0.00034416,5]
[341081450,1730352644939,-500.0,0.00034417,5]
[341081451,1730352644949,-333.3144,0.00034417,14]
[341081452,1730352644958,-333.3144,0.00034417,14]
[341081453,1730352644968,-1647.5,0.00034417,5]
[341081454,1730352644977,-500.0,0.00034417,5]
[341081455,1730352644988,-516.43,0.00034417,5]
[341081456,1730352644998,-576.799159,0.00034417,14]
[341081457,1730352645009,-576.799159,0.00034417,14]
[341081458,1730352645019,-500.0,0.00034418,5]
[341081459,1730352645030,-980.92,0.00034418,5]
[341081460,1730352645039,-3139.53,0.00034418,5]
[341081461,1730352645049,-198.0,0.0003443,30]
[341081462,1730352645059,-194.77133163,0.00034431,30]
[341081463,1730352645068,-151.0,0.00034436,14]
[341081464,1730352645078,-151.0,0.00034436,14]
[341081465,1730352645087,-223.135038,0.00034436,14]
[341081466,1730352645097,-151.0,0.00034436,14]
[341081467,1730352645107,-151.0,0.00034436,14]
[341081468,1730352645117,-5335.3,0.00034436,30]
[341081469,1730352645127,-151.0,0.0003444,14]
[341081470,1730352645137,-151.0,0.0003444,14]
[341081471,1730352645147,-151.0,0.0003444,14]
[341081472,1730352645157,-151.0,0.0003444,14]
[341081473,1730352645167,-151.0,0.0003444,14]
[341081474,1730352645177,-235.710394,0.0003444,14]
[341081475,1730352645187,-151.0,0.0003444,14]
[341081476,1730352645196,-151.0,0.0003444,14]
[341081477,1730352645207,-151.0,0.0003444,14]
[341081478,1730352645217,-151.0,0.0003444,14]
[341081479,1730352645226,-151.0,0.0003444,14]
[341081480,1730352645236,-151.0,0.0003444,14]
[341081481,1730352645246,-151.0,0.0003444,14]
[341081482,1730352645256,-151.0,0.0003444,14]
[341081483,1730352645266,-151.0,0.0003444,14]
[341081484,1730352645276,-151.0,0.0003444,14]
[341081485,1730352645285,-151.0,0.0003444,14]
[341081486,1730352645379,-151.0,0.0003444,14]
[341081487,1730352645390,-333.3144,0.0003444,14]
[341081488,1730352645400,-333.3144,0.0003444,14]
[341081489,1730352645412,-333.3144,0.0003444,14]
[341081490,1730352645422,-333.3144,0.0003444,14]
[341081491,1730352645433,-576.799159,0.0003444,14]
[341081492,1730352645443,-576.799159,0.0003444,14]
[341081493,1730352645453,-576.799159,0.0003444,14]
[341081494,1730352645464,-576.799159,0.0003444,14]
[341081495,1730352645474,-2050.49336992,0.0003444,20]
[341081496,1730352645484,-17992.28598009,0.0003444,2]
[341081497,1730352645494,-3814.98462968,0.0003444,2]
[341081498,1730352645507,-6476.35995875,0.0003444,2]
[341081499,1730352645518,-50892.83143115,0.0003444,2]
[341081500,1730352645528,-10137.85458433,0.0003444,2]
[341081501,1730352645538,-2646.32287535,0.0003444,2]
[341081502,1730352645547,-75429.55767552,0.0003444,5]
[341081503,1730352645560,-16893.0,0.0003444,5]
[341081504,1730352645573,-21852.0,0.0003444,5]
[341081505,1730352645585,-17791.22486085,0.0003444,5]
[341081506,1730352645596,-349.94973036,0.00034441,30]
[341081507,1730352645606,-1018.51,0.00034442,30]
[341081509,1730352645616,-2959.9,0.00034442,5]
[341081510,1730352645628,-599.34,0.00034442,30]
[341081511,1730352645638,-599.3,0.00034442,30]
[341081512,1730352645648,-151.18640217,0.00034499,7]
[341081513,1730352645658,-151.18640217,0.00034499,7]
[341081514,1730352645668,-151.18640217,0.00034499,7]
[341081515,1730352645678,-151.18640217,0.00034499,7]
[341081516,1730352645689,-151.18640217,0.00034499,7]
[341081517,1730352645699,-151.18640217,0.00034499,7]
[341081518,1730352645710,-151.18640217,0.00034499,7]
[341081519,1730352645720,-151.18640217,0.00034499,7]
[341081520,1730352645732,-151.18640217,0.00034499,7]
[341081521,1730352645743,-151.18640217,0.00034499,7]
[341081522,1730352645753,-151.18640217,0.00034499,7]
[341081523,1730352645764,-151.18640217,0.00034499,7]
[341081524,1730352645773,-151.18640217,0.00034499,7]
[341081525,1730352645782,-151.18640217,0.00034499,7]
[341081526,1730352645792,-151.18640217,0.00034499,7]
[341081527,1730352645806,-151.18,0.00034499,7]
[341081528,1730352645817,-181.4236826,0.00034499,7]
[341081529,1730352645828,-181.4236826,0.00034499,7]
[341081531,1730352645839,-181.4236826,0.00034499,7]
[341081532,1730352645849,-181.4236826,0.00034499,7]
[341081533,1730352645860,-181.4236826,0.00034499,7]
[341081534,1730352645870,-181.4236826,0.00034499,7]
[341081535,1730352645880,-181.4236826,0.00034499,7]
[341081536,1730352645890,-181.4236826,0.00034499,7]
[341081537,1730352645900,-181.4236826,0.00034499,7]
[341081538,1730352645909,-181.4236826,0.00034499,7]
[341081539,1730352645920,-181.4236826,0.00034499,7]
[341081540,1730352645930,-181.4236826,0.00034499,7]
[341081541,1730352645940,-181.4236826,0.00034499,7]
[341081542,1730352645950,-181.4236826,0.00034499,7]
[341081543,1730352645960,-181.4236826,0.00034499,7]
[341081544,1730352645972,-181.4236826,0.00034499,7]
[341081545,1730352645982,-157.13764764,0.00034499,7]
[341081546,1730352645992,-156.764052,0.000345,11]
[341081548,1730352646001,-781.99,0.000345,2]
[341081550,1730352646012,-151.0,0.00034519,14]
[341081551,1730352646022,-151.0,0.00034519,14]
[341081552,1730352646032,-151.0,0.00034519,14]
[341081553,1730352646042,-151.0,0.00034519,14]
[341081554,1730352646051,-151.0,0.00034519,14]
[341081555,1730352646062,-151.0,0.00034519,14]
[341081556,1730352646072,-151.0,0.00034519,14]
[341081557,1730352646081,-151.0,0.00034519,14]
[341081558,1730352646092,-151.0,0.00034519,14]
[341081559,1730352646102,-263.832482,0.00034519,14]
[341081560,1730352646112,-10454.30641355,0.00034599,2]
[341081563,1730352646153,-492.83583821,0.0003088,5]
[341081564,1730352646317,-7.16416179,0.0003088,5]
[341081565,1730352646327,-500.0,0.00031154,5]
[341081566,1730352646336,-500.0,0.00031428,5]
[341081567,1730352646346,-516.59532116,0.00031702,5]
[341081568,1730352646355,-528.0,0.00032471,2]
[341081569,1730352646365,-160.794627,0.00032676,7]
[341081570,1730352646375,-151.0,0.00032676,7]
[341081571,1730352646384,-151.0,0.00033087,14]
[341081572,1730352646393,-151.0,0.00033448,14]
[341081573,1730352646404,-151.0,0.00034142,14]
[341081574,1730352646413,-151.0,0.0003444,14]
[341081575,1730352646427,-151.0,0.0003444,14]
[341081576,1730352646440,-19686.8650142,0.00034599,2]
[341081577,1730352646454,-156.647318,0.000346,18]
[341081578,1730352646467,-241.2769105,0.0003463,2]
[341081579,1730352646480,-32.11032696,0.00034641,7]
[341081580,1730352646494,-149.31335564,0.00034641,7]
[341081581,1730352646506,-151.0,0.00034644,14]
[341081582,1730352646518,-9.58842178,0.00034644,14]
[341081583,1730352701322,161.084902,0.00013973,2]
[341081608,1730353434548,157.378966,0.00013973,2]
[341081609,1730353535136,-150.35955824,0.00024658,2]
[341081610,1730353535158,-157.378966,0.00026274,2]
[341081611,1730353535181,-240.11508416,0.00027311,2]
[341081612,1730353636116,-9.88491584,0.00027311,2]
[341081613,1730353636143,-166.666666,0.00027404,2]
[341081614,1730353636164,-213.434558,0.00027425,2]
[341081615,1730353636185,-230.019857,0.00027878,2]
[341081616,1730353636205,-570.57120761,0.00027989,2]
[341081617,1730353636226,-213.434558,0.0002811,2]
[341081618,1730353636248,-166.666666,0.00028151,2]
[341081619,1730353636271,-213.434558,0.00028795,2]
[341081620,1730353636291,-174.993663,0.00028829,2]
[341081621,1730353636431,-166.666666,0.00028898,2]
[341081622,1730353636454,-1985.084915,0.00028909,2]
[341081623,1730353636476,-181.4928031,0.00028922,2]
[341081624,1730353636498,-2257.58982264,0.00029,2]
[341081625,1730353636519,-300.0,0.00029022,2]
[341081626,1730353636541,-300.0,0.00029022,2]
[341081627,1730353636563,-5000.0,0.00029023,2]
[341081628,1730353636586,-23371.1057103,0.00029024,2]
[341081629,1730353636608,-200.0,0.000291,120]
[341081630,1730353636630,-250.0,0.00029126,2]
[341081631,1730353636650,-250.0,0.00029206,2]
[341081632,1730353636672,-250.0,0.00029286,2]
[341081633,1730353636695,-250.0,0.00029366,2]
[341081634,1730353636718,-470.27856038,0.00029388,2]
[341081635,1730353636739,-250.0,0.00029446,2]
[341081636,1730353636762,-250.0,0.00029526,2]
[341081637,1730353636785,-250.0,0.00029606,2]
[341081638,1730353636806,-166.666666,0.00029645,2]
[341081639,1730353636828,-250.0,0.00029685,2]
[341081640,1730353636851,-250.0,0.00029765,2]
[341081641,1730353636871,-500.0,0.00029842,2]
[341081642,1730353636893,-500.0,0.00029842,2]
[341081643,1730353636916,-500.0,0.00029842,2]
[341081644,1730353636936,-500.0,0.00029842,2]
[341081645,1730353636957,-500.0,0.00029842,2]
[341081646,1730353636977,-500.0,0.00029842,2]
[341081647,1730353636997,-500.0,0.00029842,2]
[341081648,1730353637019,-500.0,0.00029842,2]
[341081649,1730353637040,-500.0,0.00029842,2]
[341081650,1730353637061,-500.0,0.00029842,2]
[341081651,1730353637083,-500.0,0.00029842,2]
[341081652,1730353637104,-500.0,0.00029842,2]
[341081653,1730353637126,-158.26269637,0.00029842,2]
[341081654,1730353637149,-500.0,0.00029842,2]
[341081655,1730353637171,-500.0,0.00029842,2]
[341081656,1730353637194,-500.0,0.00029842,2]
[341081657,1730353637217,-500.0,0.00029842,2]
[341081658,1730353637239,-500.0,0.00029842,2]
[341081659,1730353637259,-500.0,0.00029842,2]
[341081660,1730353637282,-500.0,0.00029842,2]
[341081661,1730353637308,-500.0,0.00029842,2]
[341081662,1730353637330,-500.0,0.00029842,2]
[341081663,1730353637355,-500.0,0.00029842,2]
[341081664,1730353637379,-500.0,0.00029842,2]
[341081665,1730353637400,-500.0,0.00029842,2]
[341081666,1730353637423,-500.0,0.00029842,2]
[341081667,1730353637449,-500.0,0.00029842,2]
[341081668,1730353637471,-500.0,0.00029842,2]
[341081669,1730353637491,-500.0,0.00029842,2]
[341081670,1730353637512,-500.0,0.00029842,2]
[341081671,1730353637533,-500.0,0.00029842,2]
[341081672,1730353637555,-500.0,0.00029842,2]
[341081673,1730353637577,-500.0,0.00029842,2]
[341081674,1730353637601,-500.0,0.00029842,2]
[341081675,1730353637624,-500.0,0.00029842,2]
[341081676,1730353637647,-192.08221074,0.00029842,2]
[341081677,1730353637672,-500.0,0.00029842,2]
[341081678,1730353637696,-577.09032021,0.00029842,2]
[341081679,1730353637718,-500.0,0.00029842,2]
[341081680,1730353637740,-500.0,0.00029842,2]
[341081681,1730353637763,-500.0,0.00029842,2]
[341081682,1730353637787,-500.0,0.00029842,2]
[341081683,1730353637811,-289.61816659,0.00029842,2]
[341081684,1730353644100,-210.38183341,0.00029842,2]
[341081685,1730353644123,-500.0,0.00029842,2]
[341081686,1730353644147,-528.25143738,0.00029842,2]
[341081687,1730353644170,-500.0,0.00029842,2]
[341081688,1730353644192,-500.0,0.00029842,2]
[341081689,1730353644214,-600.0,0.00029842,2]
[341081690,1730353644235,-500.0,0.00029842,2]
[341081691,1730353644259,-500.0,0.00029842,2]
[341081692,1730353644281,-500.0,0.00029842,2]
[341081693,1730353644304,-500.0,0.00029842,2]
[341081694,1730353644330,-500.0,0.00029842,2]
[341081695,1730353644351,-500.0,0.00029842,2]
[341081696,1730353644373,-500.0,0.00029842,2]
[341081697,1730353644397,-500.0,0.00029842,2]
[341081698,1730353644421,-500.0,0.00029842,2]
[341081699,1730353644444,-500.0,0.00029842,2]
[341081700,1730353644466,-500.0,0.00029842,2]
[341081701,1730353644490,-500.0,0.00029842,2]
[341081702,1730353644512,-500.0,0.00029842,2]
[341081703,1730353644535,-500.0,0.00029842,2]
[341081704,1730353644556,-500.0,0.00029842,2]
[341081705,1730353644667,-500.0,0.00029842,2]
[341081706,1730353644693,-540.88277978,0.00029842,2]
[341081707,1730353644714,-500.0,0.00029842,2]
[341081708,1730353644736,-500.0,0.00029842,2]
[341081709,1730353644757,-500.0,0.00029842,2]
[341081710,1730353644780,-339.58926728,0.00029842,2]
[341081711,1730353651111,-160.41073272,0.00029842,2]
[341081712,1730353651135,-2403.26052271,0.00029843,2]
[341081713,1730353651164,-1607.20630444,0.00029843,2]
[341081714,1730353652103,-849.08601707,0.00029843,2]
[341081715,1730353654101,-140.44715578,0.00029843,2]
[341081716,1730353654123,-3721.68482956,0.00029843,2]
[341081727,1730353752957,-191.2654787,0.00028505,2]
[341081728,1730353752980,-3595.9988815,0.00028665,2]
[341081729,1730353753002,-300.0,0.00028936,2]
[341081730,1730353753023,-300.0,0.00028936,2]
[341081731,1730353753045,-3196.2566407,0.00028937,2]
[341081732,1730353753068,-1278.31517044,0.00029843,2]
[341081733,1730353753093,-1164.11033673,0.00029843,2]
[341081734,1730353753115,-250.0,0.00029845,2]
[341081735,1730353753136,-150.390694,0.00029873,2]
[341081736,1730353753157,-160.11903509,0.00029873,5]
[341081737,1730353753179,-250.0,0.00029925,2]
[341081738,1730353753201,-151.0,0.0003,120]
[341081739,1730353753223,-237.40888904,0.0003,30]
[341081740,1730353753247,-250.0,0.00030005,2]
[341081741,1730353753270,-250.0,0.00030085,2]
[341081742,1730353753293,-500.0,0.00030135,2]
[341081743,1730353753320,-500.0,0.00030135,2]
[341081744,1730353753343,-500.0,0.00030135,2]
[341081745,1730353753367,-500.0,0.00030135,2]
[341081746,1730353753389,-553.0502434,0.00030135,2]
[341081747,1730353753411,-228.73989662,0.00030135,2]
[341081748,1730353753435,-500.0,0.00030135,2]
[341081749,1730353753458,-515.82626964,0.00030135,2]
[341081750,1730353753482,-500.0,0.00030135,2]
[341081751,1730353753507,-460.09808664,0.00030135,2]
[341081752,1730353753530,-509.15859798,0.00030136,5]
[341081753,1730353753554,-500.0,0.00030136,5]
[341081754,1730353753577,-2079.07,0.00030136,5]
[341081755,1730353753600,-500.0,0.00030136,5]
[341081756,1730353753622,-514.94746752,0.00030136,5]
[341081757,1730353753646,-500.0,0.00030136,5]
[341081758,1730353753671,-4317.45,0.00030136,3]
[341081759,1730353753695,-500.0,0.00030136,5]
[341081760,1730353753720,-513.64,0.00030136,5]
[341081761,1730353753742,-500.0,0.00030136,5]
[341081762,1730353753768,-500.0,0.00030136,2]
[341081763,1730353753795,-500.0,0.00030136,5]
[341081764,1730353753819,-502.22797552,0.00030136,5]
[341081765,1730353753841,-500.0,0.00030136,5]
[341081766,1730353753862,-500.0,0.00030136,5]
[341081767,1730353753883,-500.0,0.00030136,5]
[341081768,1730353753905,-500.0,0.00030136,5]
[341081769,1730353753927,-602.60165876,0.00030136,5]
[341081770,1730353753950,-513.24105149,0.00030136,5]
[341081771,1730353753973,-500.0,0.00030136,5]
[341081772,1730353753994,-510.02401457,0.00030136,5]
[341081773,1730353754016,-509.05725315,0.00030136,5]
[341081774,1730353754042,-500.0,0.00030136,5]
[341081775,1730353754065,-503.00011884,0.00030136,5]
[341081776,1730353754088,-500.0,0.00030136,5]
[341081777,1730353754110,-500.0,0.00030136,5]
[341081778,1730353754133,-500.0,0.00030136,5]
[341081779,1730353754155,-500.0,0.00030136,5]
[341081780,1730353754179,-500.0,0.00030136,5]
[341081781,1730353754202,-564.86660869,0.00030136,5]
[341081782,1730353754335,-552.1045609,0.00030136,5]
[341081783,1730353754363,-500.0,0.00030136,5]
[341081784,1730353754385,-513.32694063,0.00030136,5]
[341081785,1730353754409,-500.0,0.00030136,5]
[341081786,1730353754432,-230.98713841,0.00030136,5]
[341081787,1730353754453,-308.46402576,0.00030136,5]
[341081788,1730353754477,-500.0,0.00030136,5]
[341081789,1730353754498,-530.39487803,0.00030136,5]
[341081790,1730353754521,-500.0,0.00030136,5]
[341081791,1730353754547,-500.0,0.00030136,5]
[341081792,1730353754574,-500.0,0.00030136,5]
[341081793,1730353754598,-501.63272483,0.00030136,5]
[341081794,1730353754622,-506.60689748,0.00030136,5]
[341081795,1730353754647,-500.0,0.00030136,5]
[341081796,1730353754670,-500.0,0.00030136,5]
[341081797,1730353754693,-500.0,0.00030136,5]
[341081798,1730353754718,-500.0,0.00030136,5]
[341081799,1730353754741,-500.0,0.00030136,5]
[341081800,1730353754763,-500.0,0.00030136,5]
[341081801,1730353754785,-500.0,0.00030136,5]
[341081802,1730353754808,-500.0,0.00030136,5]
[341081803,1730353754833,-500.0,0.00030136,5]
[341081804,1730353754857,-500.0,0.00030136,5]
[341081805,1730353754878,-500.0,0.00030136,5]
[341081806,1730353754899,-500.0,0.00030136,5]
[341081807,1730353754922,-500.0,0.00030136,5]
[341081808,1730353754945,-729.34,0.00030136,5]
[341081809,1730353754968,-505.49179759,0.00030136,5]
[341081810,1730353754989,-500.0,0.00030136,5]
[341081811,1730353755023,-518.06409944,0.00030136,5]
[341081812,1730353755052,-500.0,0.00030136,5]
[341081813,1730353755076,-500.0,0.00030136,5]
[341081814,1730353755098,-500.0,0.00030136,5]
[341081815,1730353755121,-250.0,0.00030165,2]
[341081816,1730353755145,-250.0,0.00030245,2]
[341081817,1730353755171,-250.0,0.00030325,2]
[341081818,1730353755193,-166.666666,0.00030392,2]
[341081819,1730353755218,-250.0,0.00030404,2]
[341081820,1730353755248,-2094.14892931,0.00030409,2]
[341081821,1730353755271,-500.0,0.0003041,5]
[341081822,1730353755296,-2079.07,0.0003041,5]
[341081823,1730353755322,-507.2585024,0.0003041,5]
[341081824,1730353755346,-517.01684011,0.0003041,5]
[341081825,1730353755372,-500.0,0.0003041,5]
[341081826,1730353755397,-4317.45,0.0003041,3]
[341081827,1730353755419,-500.0,0.0003041,5]
[341081828,1730353755446,-324.22500663,0.0003041,2]
[341081829,1730353755470,-500.0,0.0003041,5]
[341081830,1730353755497,-500.0,0.0003041,5]
[341081831,1730353755524,-500.0,0.0003041,5]
[341081832,1730353755549,-500.0,0.0003041,5]
[341081833,1730353755574,-500.0,0.0003041,5]
[341081834,1730353755596,-500.0,0.0003041,5]
[341081835,1730353755621,-500.0,0.0003041,5]
[341081836,1730353755643,-502.84804866,0.0003041,5]
[341081837,1730353755666,-500.0,0.0003041,5]
[341081838,1730353755688,-631.68642529,0.0003041,5]
[341081839,1730353755717,-254.54424478,0.0003041,5]
[341081840,1730353755743,-500.0,0.0003041,5]
[341081841,1730353755770,-500.0,0.0003041,5]
[341081842,1730353755794,-509.43192008,0.0003041,5]
[341081843,1730353755817,-500.0,0.0003041,5]
[341081844,1730353755841,-500.0,0.0003041,5]
[341081845,1730353755863,-500.0,0.0003041,5]
[341081846,1730353755884,-511.74823867,0.0003041,5]
[341081847,1730353755906,-500.0,0.0003041,5]
[341081848,1730353755927,-500.0,0.0003041,5]
[341081849,1730353755950,-500.0,0.0003041,5]